[Event "Titled Tuesday Blitz June 13 Early 2023"]
[White "LangesNasenhaar"]
[Black "Chos, Alexey"]
[BlackFideId "14117762"]
[WhiteElo "2462"]
[BlackElo "2234"]
[Result "1-0"]
[Round "11"]
[TimeControl "180+2"]
[Date "2023.06.13"]
[WhiteClock "0:00:03"]
[BlackClock "0:00:00"]
[Board "101"]

1. d4 {[%clk 0:03:00]}  e5 {[%clk 0:02:47]} 2. dxe5 {[%clk 0:02:59]}  d6 {[%clk 0:02:47]} 3. Nf3 {[%clk 0:02:59]}  Nc6 {[%clk 0:02:44]} 4. Nc3 {[%clk 0:02:51]}  Bg4 {[%clk 0:02:39]} 5. h3 {[%clk 0:02:49]}  Bxf3 {[%clk 0:02:30]} 6. exf3 {[%clk 0:02:50]}  Nxe5 {[%clk 0:02:30]} 7. f4 {[%clk 0:02:50]}  Nc6 {[%clk 0:02:28]} 8. Bb5 {[%clk 0:02:47]}  Nf6 {[%clk 0:02:24]} 9. O-O {[%clk 0:02:46]}  d5 {[%clk 0:02:20]} 10. f5 {[%clk 0:02:38]}  Be7 {[%clk 0:02:17]} 11. Bf4 {[%clk 0:02:37]}  O-O {[%clk 0:02:12]} 12. g4 {[%clk 0:02:35]}  a6 {[%clk 0:02:11]} 13. Ba4 {[%clk 0:02:28]}  d4 {[%clk 0:02:11]} 14. Ne2 {[%clk 0:02:23]}  b5 {[%clk 0:02:08]} 15. Bb3 {[%clk 0:02:22]}  Bd6 {[%clk 0:01:55]} 16. Nxd4 {[%clk 0:02:15]}  Na5 {[%clk 0:01:46]} 17. Qf3 {[%clk 0:02:02]}  c5 {[%clk 0:01:22]} 18. Rad1 {[%clk 0:01:35]}  Bxf4 {[%clk 0:01:18]} 19. Ne6 {[%clk 0:01:13]}  Qb8 {[%clk 0:01:10]} 20. Nxf8 {[%clk 0:01:08]}  Kxf8 {[%clk 0:00:47]} 21. Bd5 {[%clk 0:01:00]}  Ra7 {[%clk 0:00:32]} 22. Qc3 {[%clk 0:00:51]}  c4 {[%clk 0:00:26]} 23. Qxa5 {[%clk 0:00:46]}  h5 {[%clk 0:00:21]} 24. Bf3 {[%clk 0:00:33]}  Bc7 {[%clk 0:00:19]} 25. Qb4+ {[%clk 0:00:26]}  Kg8 {[%clk 0:00:18]} 26. g5 {[%clk 0:00:22]}  Ne8 {[%clk 0:00:18]} 27. g6 {[%clk 0:00:17]}  Nd6 {[%clk 0:00:14]} 28. gxf7+ {[%clk 0:00:15]}  Nxf7 {[%clk 0:00:15]} 29. Bd5 {[%clk 0:00:16]}  Kh7 {[%clk 0:00:11]} 30. Qc3 {[%clk 0:00:11]}  Be5 {[%clk 0:00:10]} 31. Qf3 {[%clk 0:00:10]}  Kh6 {[%clk 0:00:07]} 32. c3 {[%clk 0:00:09]}  Ng5 {[%clk 0:00:07]} 33. Qe3 {[%clk 0:00:07]}  Bf4 {[%clk 0:00:06]} 34. Qc5 {[%clk 0:00:05]}  Nxh3+ {[%clk 0:00:06]} 35. Kh1 {[%clk 0:00:06]}  Ng5 {[%clk 0:00:07]} 36. Bg2 {[%clk 0:00:03]}  Rc7 {[%clk 0:00:05]} 37. Rd6+ {[%clk 0:00:02]}  Bxd6 {[%clk 0:00:04]} 38. Qxd6+ {[%clk 0:00:03]}  Kh7 {[%clk 0:00:04]} 39. f6 {[%clk 0:00:04]}  Kg8 {[%clk 0:00:05]} 40. fxg7 {[%clk 0:00:04]}  Kxg7 {[%clk 0:00:02]} 41. Bd5 {[%clk 0:00:04]}  Qc8 {[%clk 0:00:02]} 42. Bg2 {[%clk 0:00:03]}  Rd7 {[%clk 0:00:01]} 43. Qe5+ {[%clk 0:00:03]}  Kh7 {[%clk 0:00:01]} 44. Qxg5 {[%clk 0:00:03]}  Qe8 {[%clk 0:00:01]} 45. Bf3 {[%clk 0:00:02]}  Rg7 {[%clk 0:00:02]} 46. Qxh5+ {[%clk 0:00:02]}  Qxh5+ {[%clk 0:00:03]} 47. Bxh5 {[%clk 0:00:02]}  Kh6 {[%clk 0:00:04]} 48. Bf3 {[%clk 0:00:01]}  Re7 {[%clk 0:00:05]} 49. Bg2 {[%clk 0:00:02]}  Kg5 {[%clk 0:00:05]} 50. Kg1 {[%clk 0:00:03]}  Kf4 {[%clk 0:00:06]} 51. Rd1 {[%clk 0:00:04]}  Re2 {[%clk 0:00:06]} 52. Rd4+ {[%clk 0:00:04]}  Ke5 {[%clk 0:00:05]} 53. Rd5+ {[%clk 0:00:04]}  Ke6 {[%clk 0:00:04]} 54. Rh5 {[%clk 0:00:04]}  Rxb2 {[%clk 0:00:04]} 55. Rh6+ {[%clk 0:00:05]}  Kd7 {[%clk 0:00:03]} 56. Rxa6 {[%clk 0:00:06]}  b4 {[%clk 0:00:03]} 57. cxb4 {[%clk 0:00:06]}  c3 {[%clk 0:00:04]} 58. Ra7+ {[%clk 0:00:04]}  Kd6 {[%clk 0:00:03]} 59. Be4 {[%clk 0:00:04]}  Re2 {[%clk 0:00:03]} 60. Bd3 {[%clk 0:00:04]}  Rd2 {[%clk 0:00:03]} 61. Bh7 {[%clk 0:00:04]}  Rd4 {[%clk 0:00:03]} 62. Ra6+ {[%clk 0:00:03]}  Kc7 {[%clk 0:00:03]} 63. Rf6 {[%clk 0:00:02]}  Rh4 {[%clk 0:00:02]} 64. Bc2 {[%clk 0:00:01]}  Rxb4 {[%clk 0:00:03]} 65. Kg2 {[%clk 0:00:01]}  Rb2 {[%clk 0:00:03]} 66. Be4 {[%clk 0:00:01]}  Re2 {[%clk 0:00:03]} 67. Bf5 {[%clk 0:00:01]}  Re5 {[%clk 0:00:04]} 68. Rf7+ {[%clk 0:00:02]}  Kd6 {[%clk 0:00:03]} 69. Bc2 {[%clk 0:00:03]}  Kc5 {[%clk 0:00:02]} 70. Bb3 {[%clk 0:00:03]}  Re2 {[%clk 0:00:00]} 71. Rc7+ {[%clk 0:00:03]} 1-0


[Site "https://www.chess.com"]

[Event "Titled Tuesday Blitz June 13 Early 2023"]
[White "Aloma Vidal, Robert"]
[Black "Melikhov, Evgeny V."]
[WhiteFideId "2260409"]
[BlackFideId "4122046"]
[WhiteElo "2435"]
[BlackElo "2158"]
[Result "1-0"]
[Round "11"]
[TimeControl "180+2"]
[Date "2023.06.13"]
[WhiteClock "0:01:28"]
[BlackClock "0:01:02"]
[Board "102"]

1. e4 {[%clk 0:02:58]}  e5 {[%clk 0:02:59]} 2. Nf3 {[%clk 0:02:58]}  Nc6 {[%clk 0:02:59]} 3. Bc4 {[%clk 0:02:57]}  Nf6 {[%clk 0:02:59]} 4. d4 {[%clk 0:02:57]}  exd4 {[%clk 0:02:58]} 5. e5 {[%clk 0:02:57]}  d5 {[%clk 0:02:56]} 6. Bb5 {[%clk 0:02:57]}  Ne4 {[%clk 0:02:56]} 7. Nxd4 {[%clk 0:02:57]}  Bd7 {[%clk 0:02:55]} 8. Bxc6 {[%clk 0:02:54]}  bxc6 {[%clk 0:02:56]} 9. O-O {[%clk 0:02:54]}  Bc5 {[%clk 0:02:52]} 10. f3 {[%clk 0:02:52]}  Ng5 {[%clk 0:02:51]} 11. f4 {[%clk 0:02:53]}  Ne4 {[%clk 0:02:51]} 12. Be3 {[%clk 0:02:53]}  Qe7 {[%clk 0:02:48]} 13. Nd2 {[%clk 0:02:46]}  Nxd2 {[%clk 0:02:42]} 14. Qxd2 {[%clk 0:02:46]}  O-O {[%clk 0:02:42]} 15. Rae1 {[%clk 0:02:23]}  Bb6 {[%clk 0:02:32]} 16. Nb3 {[%clk 0:02:10]}  f5 {[%clk 0:02:18]} 17. a4 {[%clk 0:02:03]}  Bxe3+ {[%clk 0:02:10]} 18. Rxe3 {[%clk 0:02:01]}  Be6 {[%clk 0:02:08]} 19. Rc3 {[%clk 0:01:58]}  Qb4 {[%clk 0:01:59]} 20. Rxc6 {[%clk 0:01:55]}  Qxd2 {[%clk 0:01:52]} 21. Nxd2 {[%clk 0:01:55]}  Bd7 {[%clk 0:01:51]} 22. Rxc7 {[%clk 0:01:54]}  Bxa4 {[%clk 0:01:52]} 23. Ra1 {[%clk 0:01:51]}  Bb5 {[%clk 0:01:46]} 24. Raxa7 {[%clk 0:01:50]}  Rxa7 {[%clk 0:01:46]} 25. Rxa7 {[%clk 0:01:51]}  Rc8 {[%clk 0:01:44]} 26. c3 {[%clk 0:01:51]}  d4 {[%clk 0:01:44]} 27. cxd4 {[%clk 0:01:40]}  Rc2 {[%clk 0:01:38]} 28. Nf3 {[%clk 0:01:37]}  Rxb2 {[%clk 0:01:34]} 29. d5 {[%clk 0:01:35]}  h6 {[%clk 0:01:25]} 30. e6 {[%clk 0:01:34]}  Bc4 {[%clk 0:01:22]} 31. Ra8+ {[%clk 0:01:31]}  Kh7 {[%clk 0:01:22]} 32. e7 {[%clk 0:01:31]}  Bb5 {[%clk 0:01:11]} 33. e8=Q {[%clk 0:01:27]}  Bxe8 {[%clk 0:01:02]} 34. Rxe8 {[%clk 0:01:28]} 1-0


[Site "https://www.chess.com"]

[Event "Titled Tuesday Blitz June 13 Early 2023"]
[White "Rian, Kapriaga"]
[Black "Shuvalov, Evgenij"]
[WhiteFideId "7103263"]
[BlackFideId "4187237"]
[WhiteElo "2355"]
[BlackElo "2080"]
[Result "0-1"]
[Round "11"]
[TimeControl "180+2"]
[Date "2023.06.13"]
[WhiteClock "0:00:00"]
[BlackClock "0:00:38"]
[Board "103"]

1. d4 {[%clk 0:02:54]}  Nf6 {[%clk 0:02:56]} 2. c4 {[%clk 0:02:54]}  g6 {[%clk 0:02:56]} 3. Nc3 {[%clk 0:02:53]}  d5 {[%clk 0:02:56]} 4. Bg5 {[%clk 0:02:48]}  Bg7 {[%clk 0:02:55]} 5. Bxf6 {[%clk 0:02:47]}  Bxf6 {[%clk 0:02:55]} 6. cxd5 {[%clk 0:02:47]}  c5 {[%clk 0:02:54]} 7. Nf3 {[%clk 0:02:42]}  Bg4 {[%clk 0:02:38]} 8. dxc5 {[%clk 0:02:41]}  Nd7 {[%clk 0:02:37]} 9. Qa4 {[%clk 0:02:34]}  Bxf3 {[%clk 0:02:30]} 10. gxf3 {[%clk 0:02:06]}  O-O {[%clk 0:02:29]} 11. Ne4 {[%clk 0:02:04]}  Bxb2 {[%clk 0:02:27]} 12. Rb1 {[%clk 0:02:03]}  Bg7 {[%clk 0:02:23]} 13. Rxb7 {[%clk 0:01:56]}  Nxc5 {[%clk 0:01:56]} 14. Nxc5 {[%clk 0:01:53]}  Bc3+ {[%clk 0:01:54]} 15. Kd1 {[%clk 0:01:39]}  Qxd5+ {[%clk 0:01:54]} 16. Kc2 {[%clk 0:01:34]}  Qxc5 {[%clk 0:01:46]} 17. Qb5 {[%clk 0:01:26]}  Qd4 {[%clk 0:01:09]} 18. Qd3 {[%clk 0:01:15]}  Qa4+ {[%clk 0:01:08]} 19. Kxc3 {[%clk 0:01:04]}  Rac8+ {[%clk 0:01:08]} 20. Kb2 {[%clk 0:00:58]}  Rfd8 {[%clk 0:01:08]} 21. Qb3 {[%clk 0:00:11]}  Rd2+ {[%clk 0:01:07]} 22. Kb1 {[%clk 0:00:10]}  Rd1+ {[%clk 0:01:00]} 23. Kb2 {[%clk 0:00:09]}  Qd4+ {[%clk 0:00:59]} 24. Ka3 {[%clk 0:00:09]}  Rc3 {[%clk 0:00:57]} 25. e3 {[%clk 0:00:09]}  Qc5+ {[%clk 0:00:49]} 26. Ka4 {[%clk 0:00:07]}  Rxb3 {[%clk 0:00:46]} 27. Rxb3 {[%clk 0:00:07]}  Rd2 {[%clk 0:00:45]} 28. a3 {[%clk 0:00:03]}  Rxf2 {[%clk 0:00:43]} 29. Bb5 {[%clk 0:00:03]}  Rxf3 {[%clk 0:00:41]} 30. Rd1 {[%clk 0:00:03]}  Rxe3 {[%clk 0:00:41]} 31. Rxe3 {[%clk 0:00:02]}  Qxe3 {[%clk 0:00:41]} 32. Rd8+ {[%clk 0:00:01]}  Kg7 {[%clk 0:00:41]} 33. Rd7 {[%clk 0:00:02]}  g5 {[%clk 0:00:39]} 34. Bc4 {[%clk 0:00:00]}  g4 {[%clk 0:00:38]} 0-1


[Site "https://www.chess.com"]

[Event "Titled Tuesday Blitz June 13 Early 2023"]
[White "Chuemsakul, Sarocha"]
[Black "Ciorgovean, Iustin"]
[WhiteFideId "6203710"]
[BlackFideId "1242911"]
[WhiteElo "1686"]
[BlackElo "2186"]
[Result "1-0"]
[Round "11"]
[TimeControl "180+2"]
[Date "2023.06.13"]
[WhiteClock "0:00:05"]
[BlackClock "0:00:00"]
[Board "104"]

1. d4 {[%clk 0:03:00]}  Nf6 {[%clk 0:02:52]} 2. c4 {[%clk 0:03:01]}  c5 {[%clk 0:02:52]} 3. d5 {[%clk 0:03:01]}  g6 {[%clk 0:02:52]} 4. Nc3 {[%clk 0:03:02]}  Bg7 {[%clk 0:02:52]} 5. e4 {[%clk 0:03:02]}  O-O {[%clk 0:02:53]} 6. Bd3 {[%clk 0:03:02]}  d6 {[%clk 0:02:53]} 7. Nge2 {[%clk 0:02:57]}  e5 {[%clk 0:02:52]} 8. f3 {[%clk 0:02:53]}  Ne8 {[%clk 0:02:48]} 9. g4 {[%clk 0:02:42]}  Bh6 {[%clk 0:02:48]} 10. h4 {[%clk 0:02:37]}  Bxc1 {[%clk 0:02:47]} 11. Qxc1 {[%clk 0:02:38]}  f6 {[%clk 0:02:31]} 12. Qh6 {[%clk 0:02:37]}  Qe7 {[%clk 0:02:31]} 13. h5 {[%clk 0:02:34]}  g5 {[%clk 0:02:30]} 14. Ng3 {[%clk 0:02:29]}  Nc7 {[%clk 0:02:18]} 15. Nd1 {[%clk 0:02:27]}  Ne8 {[%clk 0:02:07]} 16. Ne3 {[%clk 0:02:27]}  Qg7 {[%clk 0:02:07]} 17. Qxg7+ {[%clk 0:02:27]}  Nxg7 {[%clk 0:02:08]} 18. h6 {[%clk 0:02:27]}  Ne8 {[%clk 0:02:08]} 19. a3 {[%clk 0:02:24]}  Na6 {[%clk 0:02:05]} 20. Rb1 {[%clk 0:02:23]}  Nac7 {[%clk 0:02:02]} 21. b4 {[%clk 0:02:23]}  b6 {[%clk 0:02:02]} 22. Kd2 {[%clk 0:02:18]}  Kf7 {[%clk 0:01:58]} 23. bxc5 {[%clk 0:02:12]}  bxc5 {[%clk 0:01:58]} 24. Ngf5 {[%clk 0:02:12]}  a5 {[%clk 0:01:49]} 25. Rb6 {[%clk 0:02:08]}  Ra6 {[%clk 0:01:31]} 26. Rhb1 {[%clk 0:02:06]}  Na8 {[%clk 0:01:23]} 27. Rb8 {[%clk 0:01:55]}  Nec7 {[%clk 0:01:18]} 28. Bc2 {[%clk 0:01:52]}  Bd7 {[%clk 0:01:05]} 29. R8b7 {[%clk 0:01:44]}  Rd8 {[%clk 0:00:54]} 30. Kc3 {[%clk 0:01:18]}  Bc8 {[%clk 0:00:52]} 31. R7b2 {[%clk 0:01:11]}  Bd7 {[%clk 0:00:50]} 32. Rb7 {[%clk 0:01:10]}  Bc8 {[%clk 0:00:49]} 33. Rb8 {[%clk 0:01:09]}  a4 {[%clk 0:00:40]} 34. Kd2 {[%clk 0:00:57]}  Re8 {[%clk 0:00:33]} 35. Ng7 {[%clk 0:00:54]}  Rd8 {[%clk 0:00:33]} 36. Nd1 {[%clk 0:00:52]}  Ke7 {[%clk 0:00:30]} 37. Nh5 {[%clk 0:00:46]}  Ne8 {[%clk 0:00:24]} 38. Nc3 {[%clk 0:00:45]}  Bd7 {[%clk 0:00:22]} 39. R8b7 {[%clk 0:00:45]}  Nac7 {[%clk 0:00:18]} 40. R1b2 {[%clk 0:00:39]}  Rda8 {[%clk 0:00:18]} 41. Nd1 {[%clk 0:00:37]}  Bc8 {[%clk 0:00:17]} 42. R7b6 {[%clk 0:00:36]}  Bd7 {[%clk 0:00:16]} 43. Ne3 {[%clk 0:00:35]}  Rxb6 {[%clk 0:00:15]} 44. Rxb6 {[%clk 0:00:35]}  Ra6 {[%clk 0:00:15]} 45. Rb1 {[%clk 0:00:35]}  Na8 {[%clk 0:00:14]} 46. Ng3 {[%clk 0:00:35]}  Rb6 {[%clk 0:00:14]} 47. Ngf5+ {[%clk 0:00:34]}  Kf7 {[%clk 0:00:14]} 48. Rxb6 {[%clk 0:00:27]}  Nxb6 {[%clk 0:00:14]} 49. Kc3 {[%clk 0:00:28]}  Kg6 {[%clk 0:00:13]} 50. Bd1 {[%clk 0:00:27]}  Nc8 {[%clk 0:00:12]} 51. Bc2 {[%clk 0:00:22]}  Kf7 {[%clk 0:00:12]} 52. Bd1 {[%clk 0:00:22]}  Ne7 {[%clk 0:00:12]} 53. Ng3 {[%clk 0:00:16]}  Ng8 {[%clk 0:00:13]} 54. Kd2 {[%clk 0:00:13]}  Nxh6 {[%clk 0:00:12]} 55. Ne2 {[%clk 0:00:13]}  Ng8 {[%clk 0:00:09]} 56. Nc3 {[%clk 0:00:14]}  Ne7 {[%clk 0:00:09]} 57. Bxa4 {[%clk 0:00:14]}  Bc8 {[%clk 0:00:08]} 58. Bxe8+ {[%clk 0:00:07]}  Kxe8 {[%clk 0:00:08]} 59. a4 {[%clk 0:00:08]}  Kd7 {[%clk 0:00:05]} 60. Nb5 {[%clk 0:00:05]}  Ba6 {[%clk 0:00:04]} 61. Kd3 {[%clk 0:00:05]}  Nc8 {[%clk 0:00:04]} 62. Nf5 {[%clk 0:00:05]}  Bb7 {[%clk 0:00:04]} 63. Nh6 {[%clk 0:00:04]}  Ba6 {[%clk 0:00:00]} 64. Ng8 {[%clk 0:00:05]} 1-0


[Site "https://www.chess.com"]

[Event "Titled Tuesday Blitz June 13 Early 2023"]
[White "whiteglovethief"]
[Black "Levitan, Caleb Levi"]
[BlackFideId "14332620"]
[WhiteElo "2498"]
[BlackElo "1963"]
[Result "1-0"]
[Round "11"]
[TimeControl "180+2"]
[Date "2023.06.13"]
[WhiteClock "0:01:43"]
[BlackClock "0:00:00"]
[Board "105"]

1. d4 {[%clk 0:03:00]}  d5 {[%clk 0:02:59]} 2. c4 {[%clk 0:03:01]}  e6 {[%clk 0:02:59]} 3. Nf3 {[%clk 0:03:01]}  Nf6 {[%clk 0:02:59]} 4. g3 {[%clk 0:03:02]}  dxc4 {[%clk 0:02:59]} 5. Bg2 {[%clk 0:03:02]}  Bb4+ {[%clk 0:02:59]} 6. Nc3 {[%clk 0:03:00]}  c5 {[%clk 0:02:58]} 7. O-O {[%clk 0:02:57]}  O-O {[%clk 0:02:56]} 8. dxc5 {[%clk 0:02:55]}  Bxc5 {[%clk 0:02:56]} 9. Ne5 {[%clk 0:02:54]}  Nbd7 {[%clk 0:02:34]} 10. Nxc4 {[%clk 0:02:53]}  Qe7 {[%clk 0:02:30]} 11. Bf4 {[%clk 0:02:48]}  Rd8 {[%clk 0:02:24]} 12. Bd6 {[%clk 0:02:44]}  Bxd6 {[%clk 0:02:22]} 13. Qxd6 {[%clk 0:02:44]}  Qxd6 {[%clk 0:02:16]} 14. Nxd6 {[%clk 0:02:45]}  Rb8 {[%clk 0:01:58]} 15. Rfd1 {[%clk 0:02:34]}  b6 {[%clk 0:01:52]} 16. Ncb5 {[%clk 0:02:34]}  a6 {[%clk 0:01:45]} 17. Na7 {[%clk 0:02:27]}  Ne5 {[%clk 0:01:12]} 18. Ndxc8 {[%clk 0:02:20]}  Rbxc8 {[%clk 0:01:03]} 19. Nxc8 {[%clk 0:02:21]}  Rxc8 {[%clk 0:01:03]} 20. Rac1 {[%clk 0:02:20]}  Rb8 {[%clk 0:00:59]} 21. Rc7 {[%clk 0:02:19]}  Kf8 {[%clk 0:00:56]} 22. Rdc1 {[%clk 0:02:14]}  Ke8 {[%clk 0:00:50]} 23. Rc8+ {[%clk 0:02:11]}  Rxc8 {[%clk 0:00:50]} 24. Rxc8+ {[%clk 0:02:12]}  Kd7 {[%clk 0:00:50]} 25. Rb8 {[%clk 0:02:08]}  Kc7 {[%clk 0:00:49]} 26. Rb7+ {[%clk 0:02:08]}  Kc8 {[%clk 0:00:44]} 27. Rxb6 {[%clk 0:02:07]}  a5 {[%clk 0:00:41]} 28. Ra6 {[%clk 0:02:07]}  Nfd7 {[%clk 0:00:34]} 29. Rxa5 {[%clk 0:02:04]}  Nc4 {[%clk 0:00:34]} 30. Ra8+ {[%clk 0:02:03]}  Kc7 {[%clk 0:00:33]} 31. b3 {[%clk 0:02:03]}  Ncb6 {[%clk 0:00:32]} 32. Rg8 {[%clk 0:02:02]}  g6 {[%clk 0:00:26]} 33. Rg7 {[%clk 0:02:02]}  Ne5 {[%clk 0:00:25]} 34. f4 {[%clk 0:02:01]}  Ng4 {[%clk 0:00:17]} 35. Rxf7+ {[%clk 0:02:00]}  Nd7 {[%clk 0:00:17]} 36. Rxh7 {[%clk 0:01:58]}  Ne3 {[%clk 0:00:18]} 37. Bh3 {[%clk 0:01:54]}  Kd6 {[%clk 0:00:16]} 38. a4 {[%clk 0:01:52]}  Nc2 {[%clk 0:00:14]} 39. a5 {[%clk 0:01:50]}  Nd4 {[%clk 0:00:13]} 40. a6 {[%clk 0:01:50]}  Nb5 {[%clk 0:00:10]} 41. e4 {[%clk 0:01:46]}  Kc6 {[%clk 0:00:00]} 42. Bxe6 {[%clk 0:01:43]} 1-0


[Site "https://www.chess.com"]

[Event "Titled Tuesday Blitz June 13 Early 2023"]
[White "gueraumasague"]
[Black "Samaganova, Aleksandra"]
[BlackFideId "13800221"]
[WhiteElo "2492"]
[BlackElo "1858"]
[Result "1-0"]
[Round "11"]
[TimeControl "180+2"]
[Date "2023.06.13"]
[WhiteClock "0:01:09"]
[BlackClock "0:00:00"]
[Board "106"]

1. e4 {[%clk 0:03:00]}  c5 {[%clk 0:02:58]} 2. Nc3 {[%clk 0:03:01]}  e6 {[%clk 0:02:58]} 3. f4 {[%clk 0:03:01]}  a6 {[%clk 0:02:58]} 4. g3 {[%clk 0:03:00]}  b5 {[%clk 0:02:58]} 5. Bg2 {[%clk 0:03:01]}  Bb7 {[%clk 0:02:58]} 6. d3 {[%clk 0:03:02]}  Qc7 {[%clk 0:02:58]} 7. Nh3 {[%clk 0:03:02]}  Nf6 {[%clk 0:02:55]} 8. O-O {[%clk 0:03:02]}  d6 {[%clk 0:02:36]} 9. g4 {[%clk 0:02:46]}  Be7 {[%clk 0:02:10]} 10. g5 {[%clk 0:02:45]}  Nfd7 {[%clk 0:02:07]} 11. f5 {[%clk 0:02:45]}  e5 {[%clk 0:02:03]} 12. Qh5 {[%clk 0:02:26]}  b4 {[%clk 0:01:39]} 13. Nd5 {[%clk 0:02:21]}  Bxd5 {[%clk 0:01:31]} 14. exd5 {[%clk 0:02:22]}  g6 {[%clk 0:01:08]} 15. fxg6 {[%clk 0:02:05]}  fxg6 {[%clk 0:01:07]} 16. Qg4 {[%clk 0:01:53]}  Nf8 {[%clk 0:00:56]} 17. Nf2 {[%clk 0:01:49]}  Nbd7 {[%clk 0:00:49]} 18. Ne4 {[%clk 0:01:49]}  O-O-O {[%clk 0:00:47]} 19. Rf7 {[%clk 0:01:37]}  Re8 {[%clk 0:00:38]} 20. c3 {[%clk 0:01:33]}  a5 {[%clk 0:00:21]} 21. a3 {[%clk 0:01:30]}  b3 {[%clk 0:00:20]} 22. a4 {[%clk 0:01:30]}  Qa7 {[%clk 0:00:13]} 23. Be3 {[%clk 0:01:29]}  Kd8 {[%clk 0:00:07]} 24. Raf1 {[%clk 0:01:22]}  Qb7 {[%clk 0:00:04]} 25. Nd2 {[%clk 0:01:18]}  Qa6 {[%clk 0:00:03]} 26. Nc4 {[%clk 0:01:16]}  h5 {[%clk 0:00:03]} 27. Qe4 {[%clk 0:01:15]}  Rh7 {[%clk 0:00:02]} 28. Rxh7 {[%clk 0:01:14]}  Nxh7 {[%clk 0:00:03]} 29. Qxg6 {[%clk 0:01:14]}  Nhf8 {[%clk 0:00:02]} 30. Qxh5 {[%clk 0:01:13]}  Qb7 {[%clk 0:00:02]} 31. Nxa5 {[%clk 0:01:10]}  Qa8 {[%clk 0:00:01]} 32. Nc6+ {[%clk 0:01:10]}  Kc7 {[%clk 0:00:02]} 33. Qf7 {[%clk 0:01:09]}  Bxg5 {[%clk 0:00:00]} 34. Bxg5 {[%clk 0:01:09]} 1-0


[Site "https://www.chess.com"]

[Event "Titled Tuesday Blitz June 13 Early 2023"]
[White "Bashirli, Saadat"]
[Black "Liu, Casper"]
[WhiteFideId "13429990"]
[BlackFideId "1454153"]
[WhiteElo "1408"]
[BlackElo "2221"]
[Result "0-1"]
[Round "11"]
[TimeControl "180+2"]
[Date "2023.06.13"]
[WhiteClock "0:00:00"]
[BlackClock "0:00:18"]
[Board "111"]

1. d4 {[%clk 0:03:00]}  Nf6 {[%clk 0:02:58]} 2. e3 {[%clk 0:03:01]}  c5 {[%clk 0:02:59]} 3. c3 {[%clk 0:02:59]}  cxd4 {[%clk 0:02:59]} 4. cxd4 {[%clk 0:03:00]}  d5 {[%clk 0:03:00]} 5. f4 {[%clk 0:03:01]}  Nc6 {[%clk 0:03:01]} 6. Bd3 {[%clk 0:03:01]}  Bg4 {[%clk 0:03:01]} 7. Nf3 {[%clk 0:03:00]}  e6 {[%clk 0:03:02]} 8. Nc3 {[%clk 0:02:58]}  Bd6 {[%clk 0:03:02]} 9. O-O {[%clk 0:02:57]}  a6 {[%clk 0:03:02]} 10. h3 {[%clk 0:02:57]}  Bh5 {[%clk 0:03:00]} 11. a3 {[%clk 0:02:52]}  Rc8 {[%clk 0:03:00]} 12. Bd2 {[%clk 0:02:48]}  Nd7 {[%clk 0:03:01]} 13. g4 {[%clk 0:02:30]}  Bg6 {[%clk 0:03:00]} 14. f5 {[%clk 0:02:31]}  exf5 {[%clk 0:02:59]} 15. gxf5 {[%clk 0:02:32]}  Bh5 {[%clk 0:03:00]} 16. Nxd5 {[%clk 0:02:32]}  Nf6 {[%clk 0:02:51]} 17. Nc3 {[%clk 0:02:14]}  Bb8 {[%clk 0:02:48]} 18. Kh1 {[%clk 0:02:11]}  Qc7 {[%clk 0:02:44]} 19. Qe2 {[%clk 0:02:10]}  g5 {[%clk 0:02:41]} 20. fxg6 {[%clk 0:02:06]}  hxg6 {[%clk 0:02:41]} 21. Be1 {[%clk 0:01:18]}  Bg4 {[%clk 0:02:38]} 22. h4 {[%clk 0:01:15]}  Kf8 {[%clk 0:02:11]} 23. Qg2 {[%clk 0:01:11]}  Kg7 {[%clk 0:02:09]} 24. Nh2 {[%clk 0:01:01]}  Be6 {[%clk 0:01:45]} 25. Rxf6 {[%clk 0:00:32]}  Kxf6 {[%clk 0:01:44]} 26. Ne4+ {[%clk 0:00:31]}  Kg7 {[%clk 0:01:44]} 27. Bg3 {[%clk 0:00:31]}  Qd8 {[%clk 0:01:43]} 28. Rf1 {[%clk 0:00:19]}  Bxg3 {[%clk 0:01:39]} 29. Nxg3 {[%clk 0:00:16]}  Qxh4 {[%clk 0:01:39]} 30. d5 {[%clk 0:00:11]}  Bh3 {[%clk 0:01:35]} 31. Nf5+ {[%clk 0:00:08]}  Bxf5 {[%clk 0:01:35]} 32. Bxf5 {[%clk 0:00:08]}  Ne5 {[%clk 0:01:02]} 33. Bxc8 {[%clk 0:00:07]}  Rxc8 {[%clk 0:01:01]} 34. Kg1 {[%clk 0:00:07]}  f5 {[%clk 0:00:59]} 35. d6 {[%clk 0:00:06]}  Nc6 {[%clk 0:00:53]} 36. d7 {[%clk 0:00:06]}  Rd8 {[%clk 0:00:53]} 37. Rd1 {[%clk 0:00:06]}  Qe7 {[%clk 0:00:52]} 38. Qd2 {[%clk 0:00:05]}  Ne5 {[%clk 0:00:51]} 39. Kf2 {[%clk 0:00:05]}  Rxd7 {[%clk 0:00:51]} 40. Qe1 {[%clk 0:00:05]}  Nd3+ {[%clk 0:00:51]} 41. Rxd3 {[%clk 0:00:04]}  Rxd3 {[%clk 0:00:52]} 42. Nf3 {[%clk 0:00:04]}  Qc5 {[%clk 0:00:49]} 43. Qe2 {[%clk 0:00:04]}  Rb3 {[%clk 0:00:48]} 44. Nd4 {[%clk 0:00:03]}  Rb6 {[%clk 0:00:47]} 45. Qd2 {[%clk 0:00:03]}  Qd5 {[%clk 0:00:46]} 46. Qe2 {[%clk 0:00:02]}  Qe4 {[%clk 0:00:44]} 47. Qd2 {[%clk 0:00:02]}  Rd6 {[%clk 0:00:44]} 48. Qc3 {[%clk 0:00:02]}  Kh6 {[%clk 0:00:43]} 49. Qc1 {[%clk 0:00:01]}  Qh4+ {[%clk 0:00:41]} 50. Ke2 {[%clk 0:00:01]}  Qh2+ {[%clk 0:00:41]} 51. Kd3 {[%clk 0:00:02]}  Rd7 {[%clk 0:00:39]} 52. Qf1 {[%clk 0:00:02]}  Rc7 {[%clk 0:00:37]} 53. Qd1 {[%clk 0:00:02]}  Rc8 {[%clk 0:00:32]} 54. Qb3 {[%clk 0:00:01]}  Qc7 {[%clk 0:00:26]} 55. Qb4 {[%clk 0:00:01]}  Qc1 {[%clk 0:00:24]} 56. Qb3 {[%clk 0:00:02]}  Qb1+ {[%clk 0:00:24]} 57. Kd2 {[%clk 0:00:02]}  Rc1 {[%clk 0:00:23]} 58. Ne2 {[%clk 0:00:02]}  Rc7 {[%clk 0:00:21]} 59. Qb4 {[%clk 0:00:01]}  Rd7+ {[%clk 0:00:21]} 60. Nd4 {[%clk 0:00:01]}  Qe4 {[%clk 0:00:20]} 61. Ke2 {[%clk 0:00:01]}  Qg4+ {[%clk 0:00:18]} 62. Kd2 {[%clk 0:00:02]}  f4 {[%clk 0:00:18]} 63. Qf8+ {[%clk 0:00:01]}  Kh7 {[%clk 0:00:18]} 64. Qe8 {[%clk 0:00:00]}  fxe3+ {[%clk 0:00:18]} 0-1


[Site "https://www.chess.com"]